Cogmind - Beta 15 @@@ ROGUE MODE // 2025.06.17 @ 21:09:30 Player: Demo Result: Destroyed by Combat Programmer with EMDS Performance ------------- Evolutions (4) 2000 Regions Visited (9) 1800 Robots Destroyed (99) 495 Value Destroyed (3519) 3519 Prototype IDs (235) 4700 Alien Tech Used (0) 0 Bonus (4813) 4813 TOTAL SCORE: 17327 Bonus ------- High Alert Combat Kills 472 Follower Combat Kills 619 Met Data Miner 300 Used Data Conduit 3000 Pursued by Intercept 500 Friendly Fire -78 Cogmind --------- Core Integrity 0/850 Matter 230/300 Energy 99/100 System Corruption 15% Temperature Cool (0) Movement Core (200) Ox3 Location -6/Factory Parts ------- > --- POWER (1) -------- (None) > --- PROPULSION (6) --- (None) > --- UTILITY (5) ------ Deep Network Scanner > --- WEAPON (3) ------- Railgun Railgun > --- INVENTORY (5) ---- Energy Well (350) Matter Compressor (54) Improved Trap Extractor (0/6) Peak State ------------ > --- POWER ------------ Antimatter-Angular Reactor > --- PROPULSION ------- Hovering Gravmag-XBT Exoskeleton > --- UTILITY ---------- Armored Scrap Engine Large Storage Unit Advanced Sensor Array Advanced Signal Interpreter > --- WEAPON ----------- Advanced Assault Cannon Magnetic Acceleration Cannon Ripper > --- INVENTORY -------- Advanced Heat Sink Energy Well Matter Compressor Improved Trap Scanner Reactive Plating Deep Network Scanner Improved Trap Extractor Cobbler Unit Cooled Pulse Rifle Proton Missile Launcher Heavy Missile Launcher Improved Datajack Plasma Cutter Multitool [Rating: 80] Favorites ----------- Power Makeshift Power Source Engine Makeshift Power Source Reactor Constructs Propulsion Wheel Treads Light Treads Leg Flexi-carbon Leg Wheel Wheel Hover Unit Constructs Utility Humpback Device Armored Scrap Engine Storage Humpback Processor Advanced Signal Interpreter Hackware Deep Network Scanner Protection Reactive Plating Weapon Slug Cannon Energy Gun Constructs Energy Cannon Heavy Ion Cannon Ballistic Gun Barrage Gun Ballistic Cannon Slug Cannon Launcher Subdweller Shrapnel Launcher Special Weapon Plasma Cutter Impact Weapon Powered Hammer Slashing Weapon Ripper Build | -11 -10 -10 -9 -7 -7 -7 -7 -6 -6 ------- Run | Yrd Mat Sub Rec Fac Low Low Dat Pro Fac Slots Evolved 8 | . . . . 6 . . . . 2 Power . | . . . . . . . . . . Propulsion 4 | . . . . 4 . . . . . Utility 3 | . . . . 2 . . . . 1 Weapon 1 | . . . . . . . . . 1 Parts Attached 83 | 8 2 16 3 13 9 4 1 2 25 Power 6 | 1 . 2 . 1 1 . . . 1 Engine 6 | 1 . 2 . 1 1 . . . 1 Core . | . . . . . . . . . . Reactor . | . . . . . . . . . . Propulsion 16 | 2 1 4 2 6 . . . . 1 Treads 2 | 1 . 1 . . . . . . . Leg 1 | . . . . . . . . . 1 Wheel 13 | 1 1 3 2 6 . . . . . Hover . | . . . . . . . . . . Flight . | . . . . . . . . . . Utility 32 | 2 1 3 . 1 5 4 . 1 15 Device 20 | 1 . 2 . 1 4 3 . 1 8 Storage 8 | 1 1 1 . . 1 1 . . 3 Processor 2 | . . . . . . . . . 2 Hackware 1 | . . . . . . . . . 1 Protection 1 | . . . . . . . . . 1 Artifact . | . . . . . . . . . . Weapon 29 | 3 . 7 1 5 3 . 1 1 8 Energy Gun 6 | 3 . . . 1 . . . 1 1 Energy Cannon 3 | . . . . 3 . . . . . Ballistic Gun 7 | . . 4 1 . . . . . 2 Ballistic Cannon 7 | . . 3 . . . . . . 4 Launcher 3 | . . . . 1 1 . 1 . . Special Weapon 1 | . . . . . . . . . 1 Impact Weapon 1 | . . . . . 1 . . . . Slashing Weapon 1 | . . . . . 1 . . . . Piercing Weapon . | . . . . . . . . . . Special Melee Weapon . | . . . . . . . . . . Unidentified Prototypes 3 | . . 1 . 1 . . . . 1 Parts Lost 33 | . 3 4 . 6 3 3 1 1 12 Power 6 | . 1 1 . 1 1 . . . 2 Propulsion 8 | . 1 3 . 2 . 1 . . 1 Utility 10 | . . . . 1 1 1 . 1 6 Weapon 9 | . 1 . . 2 1 1 1 . 3 Highest Loss Streak 9 | . 3 1 . 2 3 1 1 1 9 To Critical Strikes 1 | . . . . 1 . . . . . Average Backups 14 | 1 7 10 23 22 8 7 8 7 11 Power . | . . . 1 1 . . . . . Propulsion 2 | . 3 1 4 2 . . 1 1 . Utility 5 | . 2 4 7 8 2 2 3 4 7 Weapon 4 | . 1 3 9 6 1 1 1 . 1 Tool/Special . | . . . . . . . . . . Unused Backups 45 | 1 1 6 6 13 5 2 . 2 9 Power . | . . . . . . . . . . Propulsion 12 | 1 1 . 1 8 . . . . 1 Utility 18 | . . 5 1 5 3 1 . 1 2 Weapon 12 | . . 1 4 . 1 1 . 1 4 Tool/Special 3 | . . . . . 1 . . . 2 Average Slot Usage (%) 72 | . 96 89 85 55 46 44 47 50 54 Engine 7 | . 12 9 14 7 2 1 . . . Wheel 17 | . 13 27 28 13 6 2 . . . Device 7 | . 14 9 . 7 13 12 7 13 11 Storage 10 | . 14 14 14 7 6 6 15 6 5 Energy Gun 1 | . 27 1 . . . 1 . 5 3 Energy Cannon 1 | . . . . 7 . 1 . . . Ballistic Gun 8 | . . 15 14 2 . . . . . Ballistic Cannon 8 | . . 11 14 1 . 1 . . 9 Slashing Weapon 1 | . . . . . 4 1 5 7 3 Peak Build Rating 80 | 7 7 23 25 57 55 50 50 53 80 Average Rating 32 | 5 6 15 22 52 44 44 47 51 67 On Entrance 31 | . 7 5 23 25 55 40 50 50 58 Naked Turns . | . . . . . . . . . . Heaviest Build 223 | 13 18 214 215 223 217 41 45 45 60 Greatest Support 90 | 10 10 20 40 90 45 56 56 62 83 Greatest Overweight (x) 13 | 1 4 10 10 13 7 . . . 1 Average Overweight (x) 2 | . 1 2 9 4 . . . . . Largest Inventory Capacity 35 | 8 10 35 35 35 35 15 15 15 15 Average Capacity 22 | 7 9 18 35 35 14 13 15 12 14 Most Carried 35 | 7 9 35 35 35 29 15 15 15 15 Average Carried 21 | 1 7 15 34 32 14 12 14 11 13 Final Capacity 35 | 8 10 35 35 35 15 15 15 15 5 Final Carried 35 | 5 8 34 35 29 15 15 14 15 3 Scrap Engine Consumption 116 | . . . . 55 14 13 2 2 30 Constructs Created 8 | . . . . 3 . 2 . . 3 Constructs Modified 40 | . . . . 19 4 6 . 2 9 Class Distribution -------------------- 32% | Hauler-Mutant 17% | Construct 16% | Scavenger-Mutant 9% | Trapper-Construct 9% | Hauler-Construct 7% | Mutant 6% | Commander-Mutant Dominant Class ---------------- Mutant | -10/Materials Scavenger-Mutant | -10/Subcaves Hauler-Mutant | -9/Recycling Hauler-Construct | -7/Factory Construct | -7/Lower Caves Trapper-Construct | -7/Lower Caves Trapper-Construct | -7/Data Miner Construct | -6/Proximity Caves Construct | -6/Factory Resources | -11 -10 -10 -9 -7 -7 -7 -7 -6 -6 ----------- Run | Yrd Mat Sub Rec Fac Low Low Dat Pro Fac Matter Collected 3798 | 280 10 807 76 540 325 278 62 206 1214 Remotely . | . . . . . . . . . . Salvage Created 3631 | 180 188 277 52 862 442 279 154 22 1175 Parts 174 | 16 16 16 4 56 19 13 3 . 31 Haulers Intercepted 3 | . 1 . . 1 . . . . 1 Recyclers Shooed . | . . . . . . . . . . Parts Field Recycled 13 | . . . . . . . . . 13 Retrieved Matter 201 | . . . . . . . . . 201 Parts Self-Destructed 33 | . . 12 . . 11 2 . 8 . Prevented . | . . . . . . . . . . Kills | -11 -10 -10 -9 -7 -7 -7 -7 -6 -6 ------- Run | Yrd Mat Sub Rec Fac Low Low Dat Pro Fac Combat Hostiles Destroyed 73 | . 3 3 1 23 12 4 4 5 18 Melee 1 | . . . . . . . . . 1 Guns 12 | . 3 3 . 4 . 1 . . 1 Cannons 26 | . . . 1 11 . 2 . . 12 AOE 34 | . . . . 8 12 1 4 5 4 Classes Destroyed 19 | 3 4 4 . 6 . 1 . 1 . Worker 3 | 2 1 . . . . . . . . Builder 10 | . 1 . 1 7 . . . . 1 Tunneler 4 | 3 . . . . . . . . 1 Hauler 3 | . 1 . . 1 . . . . 1 Recycler 5 | 1 . . . 1 . . . . 3 Watcher 2 | . 1 . . . . . . . 1 Swarmer 18 | . 3 . . 5 3 3 . . 4 Grunt 19 | . . . . 7 4 . . . 8 Brawler 7 | . . . . 3 3 . . . 1 Duelist 5 | . . . . 2 3 . . . . Protector 1 | . . . . 1 . . . . . Sentry 6 | . . 1 1 1 1 1 . . 1 Hunter 2 | . . . . 2 . . . . . Programmer 6 | . . . . 3 . . . . 3 Enhanced Grunt 4 | . . . . . . . 4 . . Tracker 1 | . . . . . . . . . 1 Artisan 1 | . . 1 . . . . . . . Cobbler 1 | . . 1 . . . . . . . Subdweller 2 | . . 2 . . . . . . . Samaritan 3 | . . . . . . 3 . . . Assembled 5 | . . . . . . . . 5 . Best Kill Streak 7 | 4 3 2 1 7 7 2 5 5 4 Combat Bots Only 7 | . 3 2 1 6 7 2 4 5 4 Max Kills in Single Turn 5 | 1 1 1 1 5 3 1 1 3 4 Gunslinging . | . . . . . . . . . . Exploded 4 | . . . . 4 3 1 1 3 3 Melee 1 | . . . . . . . . . 1 Uniques/NPCs Destroyed 1 | . . . . . . . 1 . . Data Miner (-7/Data Miner) Combat | -11 -10 -10 -9 -7 -7 -7 -7 -6 -6 -------- Run | Yrd Mat Sub Rec Fac Low Low Dat Pro Fac Hostile Shots Fired 795 | . 54 19 3 144 32 126 14 58 345 Missed 248 | . 13 6 . 37 11 40 6 34 101 Hits 547 | . 41 13 3 107 21 86 8 24 244 Melee 28 | . . . . 27 1 . . . . Projectile 519 | . 41 13 3 80 20 86 8 24 244 Critical Strikes 24 | . . . . 13 1 1 . . 9 Part Disruptions 2 | . . . . . . . . . 2 Damage Taken 9903 | . 467 368 83 2248 557 1277 377 421 4105 Core 1579 | . 101 85 18 139 75 213 48 15 885 Absorbed by Shields 66 | . . . 5 61 . . . . . Ignored by Resistances 51 | . . . . . . . . . 51 Regen/Repaired (Parts) 3054 | . . . . 675 684 191 . 234 1270 Core Remaining (%) 49 | 100 . . 18 . . . . 30 . Volleys Fired 364 | 24 21 130 5 76 7 25 10 3 63 Largest 3 | 2 2 2 2 2 1 1 1 1 3 Hottest 231 | 100 90 80 70 138 40 231 40 40 135 Shots Fired 560 | 31 33 183 10 124 7 25 10 2 135 Gun 288 | 31 33 116 5 49 . 7 . . 47 Cannon 232 | . . 67 5 65 . 7 . . 88 Launcher 40 | . . . . 10 7 11 10 2 . Special . | . . . . . . . . . . Kinetic 374 | . . 169 10 80 5 . 10 2 98 Thermal 145 | 31 12 14 . 37 . 14 . . 37 Explosive 13 | . . . . . 2 11 . . . Electromagnetic 28 | . 21 . . 7 . . . . . Robot Hit Streak 13 | 4 7 9 3 8 9 10 6 . 13 Robot Miss Streak 6 | 4 3 2 3 4 2 3 1 . 6 Penetration Max 1 | . . . 1 . . . . . . Secondary Targets . | . . . . . . . . . . Shots Hit Robots 292 | 14 20 39 6 76 9 22 8 . 98 Core Hits 194 | 7 11 15 3 46 22 14 23 14 39 Critical Kills 1 | . . . 1 . . . . . . Critical Parts Destroyed 1 | . . . . 1 . . . . . Critical Strikes 10 | 1 . . 1 1 . . . . 7 Burn 4 | 1 . . . . . . . . 3 Destroy 2 | . . . 1 1 . . . . . Blast 1 | . . . . . . . . . 1 Sever 3 | . . . . . . . . . 3 Melee Attacks 47 | . . . . . 18 9 1 2 17 Impact 10 | . . . . . 4 6 . . . Slashing 37 | . . . . . 14 3 1 2 17 Piercing . | . . . . . . . . . . Sneak Attacks 16 | . . . . . 4 3 1 . 8 Combat Hostiles 4 | . . . . . . . . . 4 Follow-up Attacks . | . . . . . . . . . . Damage Inflicted 12983 | 176 427 650 151 3927 1487 680 1288 479 3718 Guns 2775 | 176 304 535 41 839 . 163 . . 717 Cannons 3113 | . . 115 110 1118 . 117 . . 1653 Explosions 5522 | . 119 . . 1970 1243 62 1219 479 430 Melee 1548 | . . . . . 244 338 69 . 897 Ramming 25 | . 4 . . . . . . . 21 Kinetic 7704 | . . 588 151 2343 1125 . 1219 479 1799 Thermal 2780 | 176 195 62 . 1496 . 280 . . 571 Explosive 610 | . . . . . 118 62 . . 430 Electromagnetic 316 | . 228 . . 88 . . . . . Impact 136 | . . . . . . 136 . . . Slashing 1412 | . . . . . 244 202 69 . 897 Piercing . | . . . . . . . . . . Highest Corruption 15 | . . . . 3 3 6 6 6 15 Average Corruption 3 | . . . . 1 3 4 6 6 3 Corruption Purged . | . . . . . . . . . . Corruption Blocked . | . . . . . . . . . . Effects 93 | . . . . 21 17 15 2 14 24 Message Errors 26 | . . . . 4 6 3 1 5 7 Matter Fused 22 | . . . . 3 5 5 . 3 6 Heat Flow Errors 12 | . . . . 5 1 . . 3 3 Energy Discharges 11 | . . . . 3 1 2 . 2 3 Parts Rejected 2 | . . . . . . 1 . 1 . Parts Fused 3 | . . . . 1 1 . . . 1 Data Loss (minor) 11 | . . . . 3 2 3 1 . 2 Data Loss (major) 5 | . . . . 1 1 1 . . 2 Misfires 1 | . . . . 1 . . . . . Overload Shots 1 | . . . . . . 1 . . . Overflow Damage 794 | . . . . 373 30 . 62 . 329 Projectiles 84 | . . . . 4 . . . . 80 Explosions 406 | . . . . 369 30 . 3 . 4 Melee 304 | . . . . . . . 59 . 245 Knockbacks 24 | . . 2 1 7 . . . . 14 Impact 1 | . . . . . . . . . 1 Kinetic 20 | . . 2 1 5 . . . . 12 Secondary 3 | . . . . 2 . . . . 1 Self-Inflicted Damage 410 | . 40 . . 121 144 66 . . 39 Shots 14 | . 1 . . 4 4 4 . . 1 Rammed 4 | . 1 . . . . . . . 3 Targets Rammed 4 | . 1 . . . . . . . 3 Kicked . | . . . . . . . . . . Crushed . | . . . . . . . . . . Highest Temperature 309 | 227 162 . 27 225 264 309 . 196 230 Average Temperature 80 | 105 54 . 14 90 109 173 . 77 48 Received Heat Transfer 2142 | . 204 87 27 453 90 588 . 18 675 Effects 2 | . . . . . 1 1 . . . Energy Bleed 2 | . . . . . 1 1 . . . Siege Activations . | . . . . . . . . . . Martial Activations . | . . . . . . . . . . Shielding Activations . | . . . . . . . . . . Robots Disrupted . | . . . . . . . . . . Combat Hostiles . | . . . . . . . . . . Robots Corrupted . | . . . . . . . . . . Combat Hostiles . | . . . . . . . . . . Parts Fried . | . . . . . . . . . . Impact Corruptions . | . . . . . . . . . . Robots Melted . | . . . . . . . . . . Combat Hostiles . | . . . . . . . . . . Parts Melted 2 | . . 1 . . . . . . 1 Heat Transferred 3672 | 592 372 185 . 1413 . . . . 1110 Parts Sabotaged . | . . . . . . . . . . Parts Stolen . | . . . . . . . . . . Parts Stripped . | . . . . . . . . . . Power Chain Reactions 2 | . 2 . . . . . . . . Alert | -11 -10 -10 -9 -7 -7 -7 -7 -6 -6 ------- Run | Yrd Mat Sub Rec Fac Low Low Dat Pro Fac Maximum Alert Level 3 | . . . . 3 . . . . 1 Low Security (%) 63 | 100 100 . 100 . . . . . 72 Level 1 5 | . . . . . . . . . 27 Level 2 5 | . . . . 18 . . . . . Level 3 24 | . . . . 81 . . . . . Level 4 . | . . . . . . . . . . Level 5 . | . . . . . . . . . . High Security . | . . . . . . . . . . Max Security . | . . . . . . . . . . Peak Influence 952 | 15 70 . 115 952 . . . . 254 Initial 682 | . . . 5 682 . . . . . Average 283 | 2 31 . 33 800 . . . . 112 Influence Increases 4101 | 30 99 116 476 1884 250 350 20 90 786 Destroy 0b10 Robot/C 1520 | . 60 60 100 600 240 80 20 . 360 Destroy 0b10 Robot/NC 130 | 30 20 . 5 40 . . . . 35 Destroy Leader 220 | . 14 10 . 112 10 . . . 74 Allied During Kill 214 | . . 46 103 65 . . . . . Trap Triggered on 0b10 40 | . . . . . . . . . 40 Successful Hack 58 | . . . 41 3 . . . . 14 Select Force Hacks 210 | . . . 210 . . . . . . Disable Machine 165 | . . . 15 90 . . . . 60 Anti-Garrison Action 200 | . . . . 200 . . . . . Destroy Structure 154 | . 5 . 2 109 . . . . 38 Advance Influence 650 | . . . . 650 . . . . . Lose Combat Pursuer 540 | . . . . 15 . 270 . 90 165 Influence Decreases 3893 | 30 99 104 411 1023 788 492 278 90 578 Entered New Map 734 | . . . 7 45 348 76 258 . . Time Decay 2579 | 30 89 104 384 618 410 386 10 90 458 Search Patrol Dispatched 150 | . . . . 150 . . . . . Lost Part 260 | . 10 . . 60 30 30 10 . 120 Lost Ally 170 | . . . 20 150 . . . . . Squads Dispatched 20 | . 1 . . 11 . 1 . . 7 Investigation 3 | . 1 . . 2 . . . . . Extermination 6 | . . . . 3 . . . . 3 Reinforcement 2 | . . . . . . . . . 2 Assault 6 | . . . . 5 . 1 . . . Garrison 1 | . . . . 1 . . . . . Intercept 2 | . . . . . . . . . 2 Searches Triggered 1 | . . . . 1 . . . . . Construction Impeded 1 | . . . . . . . . . 1 Haulers Reinforced . | . . . . . . . . . . Active Scanning Responses . | . . . . . . . . . . Cargo Convoy Interrupts . | . . . . . . . . . . Stealth | -11 -10 -10 -9 -7 -7 -7 -7 -6 -6 --------- Run | Yrd Mat Sub Rec Fac Low Low Dat Pro Fac Distress Signals 1 | . . . . . . . . . 1 Communications Jammed . | . . . . . . . . . . Distress Signals . | . . . . . . . . . . Times Spotted 169 | . 10 21 6 36 12 23 4 20 37 Peak Tracking Total 13 | . 5 2 3 6 9 13 4 12 6 Tactical Retreats 17 | . . . . 1 . 6 . 5 5 Traps | -11 -10 -10 -9 -7 -7 -7 -7 -6 -6 ------- Run | Yrd Mat Sub Rec Fac Low Low Dat Pro Fac Traps Triggered 6 | . 1 1 . 1 . . . . 3 Indirectly . | . . . . . . . . . . Trap Hack Attempts . | . . . . . . . . . . Triggered . | . . . . . . . . . . Disarmed . | . . . . . . . . . . Reprogrammed . | . . . . . . . . . . Reused 6 | . . . . . . . . 2 4 Traps Extracted 4 | . . . . . 4 . . . . Installed 8 | . . . . . . . . 3 5 Triggered 5 | . . . . . . . . 1 4 Most Traps Carried 8 | . . 4 4 4 8 8 8 8 5 Machines | -11 -10 -10 -9 -7 -7 -7 -7 -6 -6 ---------- Run | Yrd Mat Sub Rec Fac Low Low Dat Pro Fac Machines Disabled 14 | . . 1 1 6 2 . . . 4 Max in Single Turn 2 | . . 1 . 2 2 . . . 1 Garrison Access 1 | . . . . 1 . . . . . Machines Repaired . | . . . . . . . . . . Machines Dismantled . | . . . . . . . . . . Machines Sabotaged . | . . . . . . . . . . Overloaded Fab Kills . | . . . . . . . . . . Hacking | -11 -10 -10 -9 -7 -7 -7 -7 -6 -6 --------- Run | Yrd Mat Sub Rec Fac Low Low Dat Pro Fac Machines Accessed 33 | . 1 2 14 5 . . 4 . 7 Terminals 11 | . 1 . 6 1 . . . . 3 Fabricators 3 | . . . . 2 . . . . 1 Repair Stations 1 | . . . . . . . . . 1 Recycling Units 10 | . . . 7 1 . . . . 2 Scanalyzers . | . . . . . . . . . . Garrison Access 1 | . . . . 1 . . . . . Total Hacks 115 | . 2 4 51 12 . . 32 . 14 Successful 69 | . . 4 26 4 . . 32 . 3 Failed 46 | . 2 . 25 8 . . . . 11 Catastrophic 8 | . 1 . 3 1 . . . . 3 Database Lockouts . | . . . . . . . . . . Manual 54 | . . . 42 7 . . . . 5 Terminals 35 | . 2 . 25 3 . . . . 5 Fabricators 6 | . . . . 5 . . . . 1 Repair Stations 3 | . . . . . . . . . 3 Recycling Units 31 | . . . 24 2 . . . . 5 Scanalyzers . | . . . . . . . . . . Garrison Access 2 | . . . . 2 . . . . . Terminal Hacks 42 | . . 4 6 . . . 32 . . Record 14 | . . 3 . . . . 11 . . Part Schematic 13 | . . . 1 . . . 12 . . Robot Schematic 6 | . . . . . . . 6 . . Robot Analysis 1 | . . . 1 . . . . . . Prototype ID Bank 5 | . . . 2 . . . 3 . . Proto ID Catalog 1 | . . 1 . . . . . . . Release Object 2 | . . . 2 . . . . . . Fabricator Hacks 4 | . . . . 3 . . . . 1 Network Status 1 | . . . . 1 . . . . . Load Schematic 1 | . . . . 1 . . . . . Build 2 | . . . . 1 . . . . 1 Repair Station Hacks 2 | . . . . . . . . . 2 Scan Component 1 | . . . . . . . . . 1 Repair 1 | . . . . . . . . . 1 Recycling Unit Hacks 2 | . . . 2 . . . . . . Retrieve Components 2 | . . . 2 . . . . . . Scanalyzer . | . . . . . . . . . . Garrison Access Hacks . | . . . . . . . . . . Unauthorized Hacks 18 | . . . 17 1 . . . . . Terminals 5 | . . . 5 . . . . . . Botnet 5 | . . . 5 . . . . . . Fabricators . | . . . . . . . . . . Repair Stations . | . . . . . . . . . . Recycling Units 12 | . . . 12 . . . . . . Mask 5 | . . . 5 . . . . . . Tunnel 7 | . . . 7 . . . . . . Scanalyzers . | . . . . . . . . . . Garrison Access 1 | . . . . 1 . . . . . Jam 1 | . . . . 1 . . . . . Data Cores Recovered . | . . . . . . . . . . Used . | . . . . . . . . . . Hacking Detections 23 | . 1 . 11 5 . . . . 6 Full Trace Events 7 | . . . 6 1 . . . . . Feedback Events . | . . . . . . . . . . Feedback Blocked . | . . . . . . . . . . Robot Schematics Acquired 6 | . . . . . . . 6 . . Robots Built . | . . . . . . . . . . Authchips . | . . . . . . . . . . Time . | . . . . . . . . . . Total Robot Build Rating . | . . . . . . . . . . Part Schematics Acquired 13 | . . . 1 . . . 12 . . Parts Built 4 | . . . . 2 . . . . 2 Authchips . | . . . . . . . . . . Time 120 | . . . . 62 . . . . 58 Total Part Build Rating 18 | . . . . 4 . . . . 14 Parts Repaired 1 | . . . . . . . . . 1 Time 32 | . . . . . . . . . 32 Parts Recycled . | . . . . . . . . . . Recycled Matter . | . . . . . . . . . . Retrieved Matter . | . . . . . . . . . . Retrieved Components 5 | . . . 5 . . . . . . Parts Scanalyzed . | . . . . . . . . . . Part Schematics Acquired . | . . . . . . . . . . Parts Damaged . | . . . . . . . . . . Bothacking | -11 -10 -10 -9 -7 -7 -7 -7 -6 -6 ------------ Run | Yrd Mat Sub Rec Fac Low Low Dat Pro Fac Used RIF Installer . | . . . . . . . . . . Robots Hacked . | . . . . . . . . . . Non-combat . | . . . . . . . . . . Combat . | . . . . . . . . . . Robot Hacks Applied . | . . . . . . . . . . Relay Couplers Released . | . . . . . . . . . . Fabnet Peak Effective % . | . . . . . . . . . . Robots Rewired 10 | . . . 8 . 2 . . . . Allies Hacked . | . . . . . . . . . . Hacks Repelled . | . . . . . . . . . . Allies | -11 -10 -10 -9 -7 -7 -7 -7 -6 -6 -------- Run | Yrd Mat Sub Rec Fac Low Low Dat Pro Fac Total Allies 30 | . . 20 8 . 2 . . . . Largest Group 26 | . . 18 26 19 2 . . . . Highest-Rated Group 452 | . . 342 452 351 46 . . . . Highest-Rated Ally 30 | . . 19 27 27 30 . . . . Total Orders 8 | . . . 2 6 . . . . . ROAM 1 | . . . . 1 . . . . . TUNNEL 5 | . . . . 5 . . . . . DROP 1 | . . . 1 . . . . . . PICKUP 1 | . . . 1 . . . . . . Ally Attacks 128 | . . 42 37 49 . . . . . Total Damage 1966 | . . 649 663 654 . . . . . Kills 21 | . . 4 10 7 . . . . . Allies Corrupted . | . . . . . . . . . . Allies Melted . | . . . . . . . . . . Intel | -11 -10 -10 -9 -7 -7 -7 -7 -6 -6 ------- Run | Yrd Mat Sub Rec Fac Low Low Dat Pro Fac Active Infowar (turns) 1785 | . 35 410 . . 260 448 . . 632 Sensors 497 | . . . . . . . . . 497 Traps 135 | . . . . . . . . . 135 Seismic 1153 | . 35 410 . . 260 448 . . . Robot Analysis Total 152 | . . . 1 . . . 151 . . Derelict Logs Recovered 6 | . . 1 . . 2 2 . 1 . Drone Launches . | . . . . . . . . . . Drone Recoveries . | . . . . . . . . . . Exploration | -11 -10 -10 -9 -7 -7 -7 -7 -6 -6 ------------- Run | Yrd Mat Sub Rec Fac Low Low Dat Pro Fac Turns Passed 13959 | 167 220 4597 2959 2073 996 904 105 605 1333 Spaces Moved 9473 | 103 146 3216 1174 698 998 1051 175 554 1358 Core 84 | 5 1 . . . 1 . . . 77 Treads 600 | . . . . 70 . 420 . . 110 Legs 889 | . . . . . . . . . 889 Wheels 6316 | 98 145 3216 1174 579 907 197 . . . Hover 284 | . . . . 1 . . . 1 282 Flight 1300 | . . . . 48 90 434 175 553 . Fastest Speed 42 | 50 95 80 160 122 60 42 42 42 42 Average Speed 112 | 88 96 122 226 227 66 45 42 42 60 Slowest Speed 528 | 95 250 230 230 528 528 60 42 42 120 Overloaded Moves 1 | . . . . . 1 . . . . Propulsion Burnouts . | . . . . . . . . . . Robots Hopped 5 | . . . . . 4 . . 1 . Potential Cave-ins 3 | . . . . . . 3 . . . Cave-ins Triggered 1 | . . . . . . 1 . . . Exploration Rate (%) 57 | 4 24 97 98 10 90 88 78 64 25 Regions Visited 9 Branch Regions 6 Pre-discovered Areas 31 | . . . 7 . . . 24 . . Known Exits Taken 3 | . . 1 . 1 . . . 1 . Unknown Exits Taken 6 | 1 1 . 1 . 1 1 1 . . Scrap Searched 33 | . . 20 . . 4 7 . 2 . Spaces Dug 114 | . . 22 . 2 1 85 . 2 2 Terrain Destroyed 439 | . 5 32 2 144 69 101 34 15 37 Melee 5 | . . . . . 1 . . 2 2 Projectile 66 | . . 32 2 17 . . . . 15 AOE 368 | . 5 . . 127 68 101 34 13 20 Terrain Rammed . | . . . . . . . . . . Walls Destroyed . | . . . . . . . . . . Machines Disabled . | . . . . . . . . . . Actions | -11 -10 -10 -9 -7 -7 -7 -7 -6 -6 --------- Run | Yrd Mat Sub Rec Fac Low Low Dat Pro Fac Total 12192 | 144 192 3716 1470 1073 1298 1448 194 927 1730 Wait 1804 | 1 18 276 224 234 219 303 4 326 199 Move 9455 | 102 145 3215 1173 697 991 1049 174 551 1358 Hop 3 | . . . . . 2 . . 1 . Pick Up 166 | 7 4 51 9 20 20 22 1 15 17 Fast Attach 44 | 7 . 5 . 4 4 5 . 3 16 Attach 29 | . 1 5 . 10 2 2 2 3 4 Detach 8 | . . . . 1 1 1 . 2 3 Swap 40 | 1 1 7 3 4 5 3 1 . 15 Drop 155 | 2 1 27 9 27 12 28 1 18 30 Fire 364 | 24 21 130 5 76 7 25 10 3 63 Melee 45 | . . . . . 16 9 1 2 17 Ram 2 | . 1 . . . . . . . 1 Kick . | . . . . . . . . . . Crush 2 | . . . . . . . . . 2 Escape Stasis 1 | . . . . . . 1 . . . Rewire 66 | . . . 47 . 19 . . . . Trap 8 | . . . . . . . . 3 5 Miscellaneous . | . . . . . . . . . . Route ------- -11/Scrapyard -10/Materials (discovered 3 exits: [*Min x2] / *Sub) -10/Subcaves (discovered 4 exits: [*Mat x2] / *Rec / [*Scr]) -9/Recycling -7/Factory (discovered 4 exits: Fac x2 / *Low x2) -7/Lower Caves -7/Lower Caves (discovered 2 exits: *Fac / *Dat) -7/Data Miner -6/Proximity Caves -6/Factory (discovered 2 exits: Fac / Low) History --------- Turn | Location | Event 5 | -11/Scrapyard | Discovered new exit (range 16) 168 | -11/Scrapyard | Entered Materials 290 | -10/Materials | Discovered new exit (range 8) 303 | -10/Materials | Build established: Mutant 331 | -10/Materials | Discovered new exit (range 4) 342 | -10/Materials | Discovered new exit (range 10) 388 | -10/Materials | Entered Subcaves 389 | -10/Subcaves | Approached by a straggling Scientist 400 | -10/Subcaves | Discovered new exit (range 13) 405 | -10/Subcaves | Shifting Twisted Machinery released Sub. Machine Gun 406 | -10/Subcaves | Shifting Twisted Machinery released Scrap Shield 408 | -10/Subcaves | Lost 3 parts (1p1n1w) 481 | -10/Subcaves | Identified exit to Recycling 629 | -10/Subcaves | A swath of the cavern ceiling suddenly collapsed 715 | -10/Subcaves | Disturbed a concealed Subdweller 720 | -10/Subcaves | Disturbed a concealed Subdweller 782 | -10/Subcaves | Build established: Scavenger-Mutant 794 | -10/Subcaves | Visited triangular shrine 800 | -10/Subcaves | Found Prototype Device 800 | -10/Subcaves | Identified V3-11A's Pendant 807 | -10/Subcaves | Befriended Subdweller 832 | -10/Subcaves | Befriended Subdweller 837 | -10/Subcaves | Befriended Subdweller 892 | -10/Subcaves | Befriended Subdweller 970 | -10/Subcaves | Discovered new exit (range 10) 976 | -10/Subcaves | Ambushed by angry Subdweller bent on revenge 977 | -10/Subcaves | Befriended Subdweller 1000 | -10/Subcaves | A swath of the cavern ceiling suddenly collapsed 1082 | -10/Subcaves | Befriended Subdweller 1219 | -10/Subcaves | Ambushed by Subdweller buried in earth 1222 | -10/Subcaves | Befriended Subdweller 1274 | -10/Subcaves | Scientist uncovered a shortcut to Scraptown 1329 | -10/Subcaves | Shifting Twisted Machinery released Scrap Shield 1329 | -10/Subcaves | Shifting Twisted Machinery released Sub. Optics 1437 | -10/Subcaves | Befriended Subdweller 1797 | -10/Subcaves | Disturbed a concealed Subdweller 1797 | -10/Subcaves | Befriended Subdweller 1927 | -10/Subcaves | Befriended Subdweller 1927 | -10/Subcaves | Befriended Subdweller 2228 | -10/Subcaves | Visited 4L-MR0's lab 2337 | -10/Subcaves | Befriended Subdweller 2437 | -10/Subcaves | Shifting Twisted Machinery released Sub. Beam Cannon 2437 | -10/Subcaves | Befriended Subdweller 2437 | -10/Subcaves | Befriended Subdweller 2438 | -10/Subcaves | Shifting Twisted Machinery released Ripper 2598 | -10/Subcaves | Ambushed by angry Subdweller bent on revenge 2602 | -10/Subcaves | Befriended Subdweller 2621 | -10/Subcaves | Core integrity fell below 50% 2622 | -10/Subcaves | Befriended Subdweller 2622 | -10/Subcaves | Befriended Subdweller 2627 | -10/Subcaves | Befriended Subdweller 2627 | -10/Subcaves | Befriended Subdweller 2693 | -10/Subcaves | Disturbed a concealed Subdweller 2697 | -10/Subcaves | Befriended Subdweller 2798 | -10/Subcaves | Visited Clippyterm 2800 | -10/Subcaves | Learned 40 Factory zone layouts 2833 | -10/Subcaves | Ambushed by Subdweller buried in earth 2991 | -10/Subcaves | Build established: Mutant 3653 | -10/Subcaves | Build established: Hauler-Mutant 3703 | -10/Subcaves | Found Cargo Legs 4985 | -10/Subcaves | Entered Recycling 4985 | -9/Recycling | Accompanied by 18 allies 5652 | -9/Recycling | Build established: Commander-Mutant 5830 | -9/Recycling | Discovered new exit (range 10) 5955 | -9/Recycling | Scanned before Scraplab entrance 5989 | -9/Recycling | Entered Scraplab 6009 | -9/Recycling | Discovered new exit (range 2) 6184 | -9/Recycling | Angered Scraplab inhabitants 6222 | -9/Recycling | Lost 3 allies 6480 | -9/Recycling | Core integrity fell below 20% 6488 | -9/Recycling | Build established: Hauler-Mutant 7813 | -9/Recycling | Found Prototype Device 7944 | -9/Recycling | Entered Factory 7944 | -7/Factory | Accompanied by 19 allies 7944 | -7/Factory | Evolved 6 slots: Propulsion x4, Utility x2 7944 | -7/Factory | Identified Scrap Engine 7945 | -7/Factory | Identified exit to Lower Caves 7945 | -7/Factory | Identified exit to Factory 8046 | -7/Factory | Lost 3 allies 8058 | -7/Factory | Fabricated Plasma Cutter (x2) 8086 | -7/Factory | Lost 6 allies 8314 | -7/Factory | Garrison activated, responded to threat 8344 | -7/Factory | Search patrols dispatched 8385 | -7/Factory | Lost 7 allies 9032 | -7/Factory | Build established: Hauler-Construct 9144 | -7/Factory | First assault squad dispatched 10017 | -7/Factory | Entered Lower Caves 10029 | -7/Lower Caves | Attracted the attention of an 0b10 outpost 10059 | -7/Lower Caves | Destroyed 7 combat bots 10071 | -7/Lower Caves | Lost 3 parts (1p1u1w) 10333 | -7/Lower Caves | Learned Factory security intel 10336 | -7/Lower Caves | Build established: Construct 10911 | -7/Lower Caves | Learned 12 Factory zone layouts 10918 | -7/Lower Caves | Discovered new exit (range 10) 10947 | -7/Lower Caves | Build established: Trapper-Construct 11013 | -7/Lower Caves | Entered another Lower Caves area 11048 | -7/Lower Caves | Spotted B-75 Beast 11172 | -7/Lower Caves | Encountered a Warlord checkpoint 11180 | -7/Lower Caves | Learned Factory interactive machine intel 11307 | -7/Lower Caves | Attracted the attention of an 0b10 outpost 11356 | -7/Lower Caves | Learned Factory emergency access door positions 11359 | -7/Lower Caves | Discovered exit to Factory (range 15) 11404 | -7/Lower Caves | Crushed by falling debris 11463 | -7/Lower Caves | Attracted the attention of an 0b10 checkpoint 11493 | -7/Lower Caves | Core integrity fell below 50% 11642 | -7/Lower Caves | Discovered new exit (range 10) 11917 | -7/Lower Caves | Entered Data Miner 11918 | -7/Data Miner | Discovered new exit (range 6) 11926 | -7/Data Miner | Met Data Miner 11934 | -7/Data Miner | Learned location of Section 7 (-2) 11934 | -7/Data Miner | Acquired the access code to Warlord's prototype stash 11942 | -7/Data Miner | Received God Mode back door access code from Data Miner 11966 | -7/Data Miner | Destroyed Data Miner 11968 | -7/Data Miner | Interfaced with the Data Conduit 11973 | -7/Data Miner | Found Prototype Hackware 12022 | -7/Data Miner | Entered Proximity Caves 12033 | -6/Proximity Caves | Learned Factory terminal intel 12049 | -6/Proximity Caves | Encountered an infested base 12181 | -6/Proximity Caves | Attracted the attention of an 0b10 checkpoint 12237 | -6/Proximity Caves | Discovered exit to Factory (range 13) 12428 | -6/Proximity Caves | Build established: Construct 12627 | -6/Proximity Caves | Entered Factory 12627 | -6/Factory | Evolved 2 slots: Utility x1, Weapon x1 12628 | -6/Factory | Identified exit to Lower Caves 12628 | -6/Factory | Identified exit to Factory 12631 | -6/Factory | Loaded intel: 279 machine locations 12632 | -6/Factory | Loaded intel: 53 interactive machine locations 12633 | -6/Factory | Loaded intel: 26 terminal locations 12675 | -6/Factory | Repaired Multitool 12916 | -6/Factory | Fabricated Railgun? 13821 | -6/Factory | Intercept squad dispatched 13830 | -6/Factory | Spotted Tracker 13856 | -6/Factory | Identified Deep Network Scanner 13874 | -6/Factory | Spotted Combat Programmer 13904 | -6/Factory | System corruption reached 10% 13907 | -6/Factory | Core integrity fell below 50% 13922 | -6/Factory | Core integrity fell below 20% 13931 | -6/Factory | Destroyed Tracker 13942 | -6/Factory | Lost 9 parts (1p1n4u3w) 13960 | -6/Factory | Destroyed by Combat Programmer with EMDS Last Messages --------------- 13931_ Tracker destroyed. 13931_ EMDS Slug penetrates Assembly Bed. 13933_ Door malfunctions. 13936_ EMDS Slug penetrates Door. 13941_ EMDS Slug penetrates Wall. 13941_ Subcomponent Replicator disabled. 13943_ Acquired Railgun. 13947_ Slug penetrates Fabricator. 13950_ System corrupted: Substantial component data lost. 13951_ EMDS Slug penetrates Fabricator. 13951_ Fabricator disabled. 13953_ Slug penetrates Combat Programmer. 13953_ Slug penetrates Fabricator. 13953_ Slug penetrates Subcomponent Replicator. 13953_ Penetrated by EMDS Slug. 13956_ Slug penetrates P-60 Hacker. 13956_ Slug penetrates Door. 13956_ Terminal disabled. 13958_ Penetrated by EMDS Slug. Map ----- +----------------------------------------------------+ | ?# """ """ #????### ###?????# # | | ## """ """ #????# #?????# ##### # | | + ###### T" ####### #???# ## | | # """ + " #???# ## | | +% !! """ ###### #### #???# ## | | # !!! """ #????# #??# #???# ## | | # #????## ##??# #???# + | | # #?????# #???# #???# ###### | | # #?????# ##??# #???# #????# | | # #?????# T#??# #???# #????##### | | ####/###########?????# #??#+##+##### #????????? | | ??## #??????"""?"""??# ##??# # #????????? | | ??##%#??????"""?"""??# #???# """ # #????????? | | #?#%#??????"""?"""??# #???# = """ # #????????? | | #?#%#???????????????# #???# """ # #????????? | | #?# #??????????????## ##??# + #????????? | | #?#%#????###+####### #??# # #????????? | | ##?#%#????# " #??# ""T"" # ########## | | ???#%#????# T #??# """"" + ^ | | ???# #????# #??# #+########## | | ???# #????# ####### #??########## / #? | | ???# #????# #########;######????????# #? | | ???# #????# " #????????# #? | | ?### ###### # " p / !#????????# """ """ #? | | ?# # """"" p #????????# """ """ #? | | # ^ ^ # """"" ""@ #????????# """ """ #? | | # # ""F " #????????# ?? | | + ^ # ! ! """ #????????# ?? | | #^ ################????????##########?? | | # """""" ###????????????????????????????????? | | ?# """""" #????????????????????????????????? | | "# """""" #????????????????????????????????? | | """ #????????????????????????????????? | | #????????????????????????????????? | | #????????????????????????????????? | | "# #????????????????????????????????? | | #####+### #????????????????????????????????? | | ####/########????????????????????????????? | | ] # / #????????????????????????????? | | # #????????????????????????????? | | ! # """ #????????????????????????????? | | # """ #????????????????????????????? | | # """ " " #????????????????????????????? | | ! ] # "Y" #????????????????????????????? | | # """ #????????????????????????????? | | #####################????????????????????????????? | | | | | | | | | +----------------------------------------------------+ Best States ------------- Heat Dissipation 53 Energy Generation 20 Energy Capacity 612 Matter Stores 300 Matter Capacity 300 Sight Range 16 Robot Scan Range 16 Terrain Scan Density 10 Armor Coverage 150 Resistance: KI 20 Resistance: EX 25 Melee Speed Boost 20 Evasion (%) 66 Recoil Reduction 5 Offensive Hacking 25 Trap Extractor Capacity 6 Item Schematics ----------------- Plasma Cutter | -9/Recycling | Hacked Lgt. Regenerative Plating | -7/Data Miner | Free Biomechanical Wings | -7/Data Miner | Free Exp. Targeting Computer | -7/Data Miner | Free Com. Ion Cannon | -7/Data Miner | Free Combat Drone Bay | -7/Data Miner | Free Thunder Leg | -7/Data Miner | Free Adv. Melee Analysis Suite | -7/Data Miner | Free Hyp. Coil Gun | -7/Data Miner | Free Matter Neutralizer | -7/Data Miner | Free Adv. Transmission Jammer | -7/Data Miner | Free Imp. Corruption Screen | -7/Data Miner | Free Adv. Shield Generator | -7/Data Miner | Free Robot Schematics ------------------ O-24 Administrator | -7/Data Miner | Free Y-54 Guardian | -7/Data Miner | Free W-25 Informer | -7/Data Miner | Free A-15 Conveyor | -7/Data Miner | Free B-48 Gladiator | -7/Data Miner | Free B-60 Warrior | -7/Data Miner | Free Fabricated ------------ Plasma Cutter | x2 | -7/Factory Railgun | x2 | -6/Factory | Preloaded Repaired ---------- Multitool | 56% | -6/Factory Alien Tech Used ----------------- None Achievements -------------- None Challenges ------------ None Game ------ Seed ScatterScanArmor Manual? 0 Play Time 01:36:20 Cumulative 277.7 hours Start 2025.06.17 @ 19:20:26 End 2025.06.17 @ 21:09:30 Sessions 1 Manual Loads 0 Difficulty Rogue Special Mode None Game No. 251 Rogue 251 Adventurer 0 Explorer 0 Win Type - Total 2 Types 1/1/0/0/0/0/0/0/0/0 Lore% 76 Gallery% 79 Achievement% 72 Wizard Run 0 Options --------- Layout 1 ASCII 0 Keyboard 0 Movement Numpad Keybinds 0 Fullscreen 1 Font 24/Smallcaps Map View 50x35 Zoom Use 0% Tactical HUD 1 Map Filters NONE Filters NONE Steam 1 RUN: 75a1d838-8ec3-44f6-a4d9-bdd38d7d13d3